Workbook

Sheet المقسطون
C2: ملف العميــل | D2: 100 | E2: الاســم | F2: =VLOOKUP(D2,B26:K61,2,0) -> 1 | J2: تاريخ اليوم : | K2: =TODAY() -> 2022-02-23
A4: نظـام الخصــم | I4: حساب نســبة التقسـيط | L4: نظام تحويل التاريخ من هجري لميلادي
E5: إسم البضاعة :
C6: السعر النقدي | D6: =VLOOKUP(D2,B26:K61,4,0) -> 45000 | I6: السعر | J6: الاشهر | L6: بداية التسديد | M6: نهاية التسديد
C7: قيمة العقد بالتقسيط | D7: =VLOOKUP(D2,B26:K61,5,0) -> 46400 | E7: موديلها : | I7: 50000 | J7: =VLOOKUP(D2,B26:K61,3,1) -> 40 | L7: =D11 -> 2008-10-25 | M7: =D12 -> 2011-12-20
C8: المقدم | D8: 0 | I8: الزيادة | J8: =SUM(I7*(J7%+5%)) -> 22500 | L8: =TEXT(L7,"[$-,197000]B2yyyy/mm/dd;@")+1 -> 2008-10-26 | M8: =TEXT(M7,"[$-,197000]B2yyyy/mm/dd;@")+1 -> 2011-12-21
C9: القسط الشهري | D9: =VLOOKUP(D2,B26:K61,6,0) -> 1160 | I9: بعد الزيادة | J9: =SUM(I7+J8) -> 72500 | L9: =TEXT(L7+1,"[$-,197]B2yyyy/mm/dd;@") -> 1429/10/26 | M9: =TEXT(M7+1,"[$-,197]B2yyyy/mm/dd;@") -> 1433/01/26
C10: ماتم سداده من المبلغ | D10: =IF($D$11>$K$2,0,IF($D$12<$K$2,$D$7,(SUM(DATEDIF($D$11,$K$2,"Y")*12)+(DATEDIF($D$11,$K$2,"ym"))+(IF(DATEDIF($D$11,$K$2,"md")<>0,1,0)))*D9)) -> 46400 | F10: المدة | G10: =(D7-D8)/D9 -> 40 | I10: القسط الشهري | J10: =SUM(J9/J7) -> 1812.5
C11: بداية التسديد | D11: =VLOOKUP(D2,B26:K61,7,0) -> 2008-10-25 | F11: الربح كامل | G11: =D7-D6 -> 1400 | I11: التاريخ الميلادي والتاريخ الهجري
C12: نهاية التسديد | D12: =VLOOKUP(D2,B26:K61,8,0) -> 2011-12-20 | F12: الربح الشهري | G12: =G11/G10 -> 35
C13: الأشهر المسددة | D13: =(D10/D9) -> 40 | F13: النسبة | G13: =(G11/(D6-D8))*100 -> 3.111111111 | I13: ملف العميــل | J13: الاســم | L13: مدة العقـد | M13: من | N13: الى
C14: الأشهر المتبقية | D14: =D16/D9 -> 0 | F14: النسبة السنوية | G14: =(G13/G10)*12 -> 0.9333333333 | I14: =D2 -> 100 | J14: =F2 -> 1 | L14: =G10 -> 40 | M14: =D11 -> 2008-10-25 | N14: =D12 -> 2011-12-20
F15: النسبة الشهرية | G15: =G13/G10 -> 0.07777777778 | I15: حالة الاشهر وقيمة العقد | M15: =TEXT(M14,"[$-,197000]B2yyyy/mm/dd;@")+1 -> 2008-10-26 | N15: =EDATE(M15,L14) -> 2012-02-26
C16: الباقي من المبلغ | D16: =D7-D10 -> 0 | I16: الأشهر المسددة | J16: ='حركة تسديد عميل'!H7 -> 39 | K16: المبــالغ المســدة | L16: =(J16*D9) -> 45240 | M16: نسبة السداد بـ %
C17: الخصم | D17: =((D16*G14%)*(D14/12))/(1+((G14%)*(D14/12))) -> 0 | I17: الأشهر المتبقية | J17: =L14-J16 -> 1 | K17: المبــالغ المتبـقية | L17: =(J17*D9) -> 1160 | M17: =L16/D7 -> 0.975
C18: المطلوب | D18: =D16-D17 -> 0 | I18: حـالة العقــد | J18: =VLOOKUP(D2,B26:N61,11,0) -> العقـد منتهى | K18: مبلغ السداد المبكر | L18: =IF(J18="سداد مبكر",INDEX(N26:N61,MATCH(J18,L26:L61,0)),"") ->  | M18: تاريخ السداد المبكر | N18: =IF(J18="سداد مبكر",INDEX(M26:M61,MATCH(J18,L26:L61,0)),"") -> 
M19: =VLOOKUP(D4,B27:L62,11,0) -> 
C23: ملاحظة : اذا تم السداد قبل الموعد المحدد يتم إضافة 1000 ( الف ريال )
B25: رقم الملف | C25: الاسم | D25: مدة القرض ( بالشهر ) | E25: السعر النقدي | F25: القيمة بعد التقسيط | G25: القسط | H25: من | I25: الى | J25: الربــح | K25: الدخل الشهري | L25: حـالة العقـد | M25: سداد مبكر بتاريخ | N25: المبلغ المسدد
B26: 100 | C26: 1 | D26: 40 | E26: 45000 | F26: 46400 | G26: 1160 | H26: 2008-10-25 | I26: =MID(TEXT(H26,"b2dd.mm.yyyy"),1,2)-MID(TEXT(H26+ROUND((D26-1)*354.367056/12,0),"b2dd.mm.yyyy"),1,2)+H26+ROUND((D26-1)*354.367056/12,0) -> 2011-12-20 | J26: =SUM(E26*(D26%+5%)) -> 20250 | K26: 0 | L26: =IFERROR(IF(AND(M26<>"",M26<I26),"سداد مبكر",IF(TODAY()=I26,"العقد انتهى اليوم",IF(TODAY()>I26,"العقـد منتهى",IF(TODAY()<H26,"لم يتم تداولة","العقـد سارى")))),"") -> العقـد منتهى
B27: 200 | C27: 2 | D27: 40 | E27: 45000 | F27: 43500 | G27: 1087 | H27: 2009-01-21 | I27: 2012-03-18 | J27: 20250 | K27: 0 | L27: =IFERROR(IF(AND(M27<>"",M27<I27),"سداد مبكر",IF(TODAY()=I27,"العقد انتهى اليوم",IF(TODAY()>I27,"العقـد منتهى",IF(TODAY()<H27,"لم يتم تداولة","العقـد سارى")))),"") -> العقـد منتهى
B28: 300 | C28: 3 | D28: 40 | E28: 45000 | F28: 46400 | G28: 1160 | H28: 2010-03-10 | I28: 2013-05-05 | J28: 20250 | K28: 0 | L28: العقـد منتهى
B29: 400 | C29: 4 | D29: 40 | E29: 45000 | F29: 39160 | G29: 979 | H29: 2010-06-07 | I29: 2013-08-01 | J29: 20250 | K29: 0 | L29: العقـد منتهى
B30: 500 | C30: 5 | D30: 40 | E30: 45000 | F30: 43520 | G30: 1088 | H30: 2010-11-01 | I30: 2013-12-28 | J30: 20250 | K30: 0 | L30: العقـد منتهى
E62: =SUM(E26:E61) -> 225000 | F62: =SUM(F26:F61) -> 218980 | J62: =SUM(J26:J61) -> 101250 | K62: =SUM(K26:K61) -> 0

Sheet حركة تسديد عميل
A2: ملف العميــل | B2: 100 | C2: الاســم | D2: =VLOOKUP(B2,المقسطون!B25:I60,2,0) -> 1 | H2: تاريخ اليوم : | I2: =TODAY() -> 2022-02-23
B5: مدة العقد (بالاشهر) | C5: =VLOOKUP(B2,المقسطون!$B$25:$H$60,3,0) -> 40 | F5: حـالة العقــد | G5: =VLOOKUP(B2,المقسطون!B26:N61,11,0) -> العقـد منتهى
D6: الأقساط التأخرة | E6: =SUM(I19:I58) -> 1160
B7: بداية العقد | C7: =VLOOKUP(B2,المقسطون!$B$25:$H$60,7,0) -> 2008-10-25 | G7: الأشهر المسددة | H7: =IF(COUNT(H19:H58)>C9,C9,COUNT(H19:H58)) -> 39
C8: =TEXT(C7,"[$-,197000]B2yyyy/mm/dd;@")+1 -> 2008-10-26 | G8: الأشهر المتبقية | H8: =C5-H7 -> 1
B9: نهاية العقد | C9: =TEXT(C7+((C5-1)*29.5),"B2yyyy/mm/")&TEXT(C7,"B2dd") -> 1433/01/25 | G9: المبــالغ المســدة | H9: =SUM(H19:H58) -> 45240
C10: =ConvertDate(C9) -> 2011/12/20 | G10: المبــالغ المتبـقية | H10: =-(H9-C14) -> 1160
B11: القســـــــط | C11: =VLOOKUP(B2,المقسطون!$B$25:$H$60,6,0) -> 1160 | G11: نسبة السداد بـ % | H11: =H9/C14 -> 0.975
B12: السعر النقدي | C12: =VLOOKUP(B2,المقسطون!$B$25:$H$60,4,0) -> 45000
B13: الربـــــــــح | C13: =VLOOKUP(B2,المقسطون!B26:N61,9,0) -> 20250 | G13: الســداد المبكـر
B14: قيمة العقد | C14: =VLOOKUP(B2,المقسطون!$B$25:$H$60,5,0) -> 46400 | D14: حركة تسديد عميل | G14: تاريخ السداد المبكر | H14: =IF(G5="سداد مبكر",INDEX(المقسطون!M26:M61,MATCH(G5,المقسطون!L26:L61,0)),"") -> 
G16: قيمة السداد المبكر | H16: =IF(G5="سداد مبكر",INDEX(المقسطون!N27:N62,MATCH(G5,المقسطون!L27:L62,0)),"") -> 
C18: الشهــر | D18: التحصيل بالتاريخ ( هـ ) | E18: التحصيل بالتاريخ ( م ) | F18: رصيد القرض | G18: القسط | H18: التسديدات | I18: الأقساط المتأخرة
C19: =IF(D19="","",ROW()-18) -> 1 | D19: =IF(h2g(TEXT($C$7+((ROW()-19)*29.5),"B2yyyy/mm/")&TEXT($C$7,"B2dd"))>$H$14,"",IF(h2g(TEXT($C$7+((ROW()-19)*29.5),"B2yyyy/mm/")&TEXT($C$7,"B2dd"))>h2g($C$9),"",TEXT($C$7+((ROW()-19)*29.5),"B2yyyy/mm/")&TEXT($C$7,"B2dd"))) -> 1429/10/25 | E19: =IF(D19<>"",ConvertDate(D19),"") -> 2008/10/25 | F19: =C14 -> 46400 | G19: =VLOOKUP(B2,المقسطون!B26:N61,6,0) -> 1160 | H19: =IF(I19<>"","",IF(C19="","",IF(TODAY()>=h2g(D19),G19,""))) ->  | I19: =IF(VLOOKUP($B$2,'المبالغ المتاخره'!$B$26:$AQ$61,ROW()-16,0)=0,"",VLOOKUP($B$2,'المبالغ المتاخره'!$B$26:$AQ$61,ROW()-16,0)) -> 1160
C20: =IF(D20="","",ROW()-18) -> 2 | D20: =IF(h2g(TEXT($C$7+((ROW()-19)*29.5),"B2yyyy/mm/")&TEXT($C$7,"B2dd"))>$H$14,"",IF(h2g(TEXT($C$7+((ROW()-19)*29.5),"B2yyyy/mm/")&TEXT($C$7,"B2dd"))>h2g($C$9),"",TEXT($C$7+((ROW()-19)*29.5),"B2yyyy/mm/")&TEXT($C$7,"B2dd"))) -> 1429/11/25 | E20: =IF(D20<>"",ConvertDate(D20),"") -> 2008/11/23 | F20: =IF(D20="","",F19-G20) -> 45240 | G20: =VLOOKUP(B2,المقسطون!B26:N61,6,0) -> 1160 | H20: =IF(I20<>"","",IF(C20="","",IF(TODAY()>=h2g(D20),G20,""))) -> 1160 | I20: =IF(VLOOKUP($B$2,'المبالغ المتاخره'!$B$26:$AQ$61,ROW()-16,0)=0,"",VLOOKUP($B$2,'المبالغ المتاخره'!$B$26:$AQ$61,ROW()-16,0)) -> 
C21: 3 | D21: =IF(h2g(TEXT($C$7+((ROW()-19)*29.5),"B2yyyy/mm/")&TEXT($C$7,"B2dd"))>$H$14,"",IF(h2g(TEXT($C$7+((ROW()-19)*29.5),"B2yyyy/mm/")&TEXT($C$7,"B2dd"))>h2g($C$9),"",TEXT($C$7+((ROW()-19)*29.5),"B2yyyy/mm/")&TEXT($C$7,"B2dd"))) -> 1429/12/25 | E21: 2008/12/23 | F21: =IF(D21="","",F20-G21) -> 44080 | G21: =VLOOKUP(B2,المقسطون!B26:N61,6,0) -> 1160 | H21: =IF(I21<>"","",IF(C21="","",IF(TODAY()>=h2g(D21),G21,""))) -> 1160 | I21: =IF(VLOOKUP($B$2,'المبالغ المتاخره'!$B$26:$AQ$61,ROW()-16,0)=0,"",VLOOKUP($B$2,'المبالغ المتاخره'!$B$26:$AQ$61,ROW()-16,0)) -> 
C22: 4 | D22: =IF(h2g(TEXT($C$7+((ROW()-19)*29.5),"B2yyyy/mm/")&TEXT($C$7,"B2dd"))>$H$14,"",IF(h2g(TEXT($C$7+((ROW()-19)*29.5),"B2yyyy/mm/")&TEXT($C$7,"B2dd"))>h2g($C$9),"",TEXT($C$7+((ROW()-19)*29.5),"B2yyyy/mm/")&TEXT($C$7,"B2dd"))) -> 1430/01/25 | E22: 2009/01/21 | F22: 42920 | G22: =VLOOKUP(B2,المقسطون!B26:N61,6,0) -> 1160 | H22: =IF(I22<>"","",IF(C22="","",IF(TODAY()>=h2g(D22),G22,""))) -> 1160 | I22: =IF(VLOOKUP($B$2,'المبالغ المتاخره'!$B$26:$AQ$61,ROW()-16,0)=0,"",VLOOKUP($B$2,'المبالغ المتاخره'!$B$26:$AQ$61,ROW()-16,0)) -> 
C23: 5 | D23: =IF(h2g(TEXT($C$7+((ROW()-19)*29.5),"B2yyyy/mm/")&TEXT($C$7,"B2dd"))>$H$14,"",IF(h2g(TEXT($C$7+((ROW()-19)*29.5),"B2yyyy/mm/")&TEXT($C$7,"B2dd"))>h2g($C$9),"",TEXT($C$7+((ROW()-19)*29.5),"B2yyyy/mm/")&TEXT($C$7,"B2dd"))) -> 1430/02/25 | E23: 2009/02/20 | F23: 41760 | G23: =VLOOKUP(B2,المقسطون!B26:N61,6,0) -> 1160 | H23: =IF(I23<>"","",IF(C23="","",IF(TODAY()>=h2g(D23),G23,""))) -> 1160 | I23: =IF(VLOOKUP($B$2,'المبالغ المتاخره'!$B$26:$AQ$61,ROW()-16,0)=0,"",VLOOKUP($B$2,'المبالغ المتاخره'!$B$26:$AQ$61,ROW()-16,0)) -> 
C24: 6 | D24: =IF(h2g(TEXT($C$7+((ROW()-19)*29.5),"B2yyyy/mm/")&TEXT($C$7,"B2dd"))>$H$14,"",IF(h2g(TEXT($C$7+((ROW()-19)*29.5),"B2yyyy/mm/")&TEXT($C$7,"B2dd"))>h2g($C$9),"",TEXT($C$7+((ROW()-19)*29.5),"B2yyyy/mm/")&TEXT($C$7,"B2dd"))) -> 1430/03/25 | E24: 2009/03/21 | F24: 40600 | G24: =VLOOKUP(B2,المقسطون!B26:N61,6,0) -> 1160 | H24: =IF(I24<>"","",IF(C24="","",IF(TODAY()>=h2g(D24),G24,""))) -> 1160 | I24: =IF(VLOOKUP($B$2,'المبالغ المتاخره'!$B$26:$AQ$61,ROW()-16,0)=0,"",VLOOKUP($B$2,'المبالغ المتاخره'!$B$26:$AQ$61,ROW()-16,0)) -> 
C25: 7 | D25: =IF(h2g(TEXT($C$7+((ROW()-19)*29.5),"B2yyyy/mm/")&TEXT($C$7,"B2dd"))>$H$14,"",IF(h2g(TEXT($C$7+((ROW()-19)*29.5),"B2yyyy/mm/")&TEXT($C$7,"B2dd"))>h2g($C$9),"",TEXT($C$7+((ROW()-19)*29.5),"B2yyyy/mm/")&TEXT($C$7,"B2dd"))) -> 1430/04/25 | E25: 2009/04/20 | F25: 39440 | G25: =VLOOKUP(B2,المقسطون!B26:N61,6,0) -> 1160 | H25: =IF(I25<>"","",IF(C25="","",IF(TODAY()>=h2g(D25),G25,""))) -> 1160 | I25: =IF(VLOOKUP($B$2,'المبالغ المتاخره'!$B$26:$AQ$61,ROW()-16,0)=0,"",VLOOKUP($B$2,'المبالغ المتاخره'!$B$26:$AQ$61,ROW()-16,0)) -> 
C26: 8 | D26: =IF(h2g(TEXT($C$7+((ROW()-19)*29.5),"B2yyyy/mm/")&TEXT($C$7,"B2dd"))>$H$14,"",IF(h2g(TEXT($C$7+((ROW()-19)*29.5),"B2yyyy/mm/")&TEXT($C$7,"B2dd"))>h2g($C$9),"",TEXT($C$7+((ROW()-19)*29.5),"B2yyyy/mm/")&TEXT($C$7,"B2dd"))) -> 1430/05/25 | E26: 2009/05/19 | F26: 38280 | G26: =VLOOKUP(B2,المقسطون!B26:N61,6,0) -> 1160 | H26: =IF(I26<>"","",IF(C26="","",IF(TODAY()>=h2g(D26),G26,""))) -> 1160 | I26: =IF(VLOOKUP($B$2,'المبالغ المتاخره'!$B$26:$AQ$61,ROW()-16,0)=0,"",VLOOKUP($B$2,'المبالغ المتاخره'!$B$26:$AQ$61,ROW()-16,0)) -> 
C27: 9 | D27: =IF(h2g(TEXT($C$7+((ROW()-19)*29.5),"B2yyyy/mm/")&TEXT($C$7,"B2dd"))>$H$14,"",IF(h2g(TEXT($C$7+((ROW()-19)*29.5),"B2yyyy/mm/")&TEXT($C$7,"B2dd"))>h2g($C$9),"",TEXT($C$7+((ROW()-19)*29.5),"B2yyyy/mm/")&TEXT($C$7,"B2dd"))) -> 1430/06/25 | E27: 2009/06/18 | F27: 37120 | G27: =VLOOKUP(B2,المقسطون!B26:N61,6,0) -> 1160 | H27: =IF(I27<>"","",IF(C27="","",IF(TODAY()>=h2g(D27),G27,""))) -> 1160 | I27: =IF(VLOOKUP($B$2,'المبالغ المتاخره'!$B$26:$AQ$61,ROW()-16,0)=0,"",VLOOKUP($B$2,'المبالغ المتاخره'!$B$26:$AQ$61,ROW()-16,0)) -> 
C28: 10 | D28: =IF(h2g(TEXT($C$7+((ROW()-19)*29.5),"B2yyyy/mm/")&TEXT($C$7,"B2dd"))>$H$14,"",IF(h2g(TEXT($C$7+((ROW()-19)*29.5),"B2yyyy/mm/")&TEXT($C$7,"B2dd"))>h2g($C$9),"",TEXT($C$7+((ROW()-19)*29.5),"B2yyyy/mm/")&TEXT($C$7,"B2dd"))) -> 1430/07/25 | E28: 2009/07/17 | F28: 35960 | G28: =VLOOKUP(B2,المقسطون!B26:N61,6,0) -> 1160 | H28: =IF(I28<>"","",IF(C28="","",IF(TODAY()>=h2g(D28),G28,""))) -> 1160 | I28: =IF(VLOOKUP($B$2,'المبالغ المتاخره'!$B$26:$AQ$61,ROW()-16,0)=0,"",VLOOKUP($B$2,'المبالغ المتاخره'!$B$26:$AQ$61,ROW()-16,0)) -> 
C29: 11 | D29: =IF(h2g(TEXT($C$7+((ROW()-19)*29.5),"B2yyyy/mm/")&TEXT($C$7,"B2dd"))>$H$14,"",IF(h2g(TEXT($C$7+((ROW()-19)*29.5),"B2yyyy/mm/")&TEXT($C$7,"B2dd"))>h2g($C$9),"",TEXT($C$7+((ROW()-19)*29.5),"B2yyyy/mm/")&TEXT($C$7,"B2dd"))) -> 1430/08/25 | E29: 2009/08/16 | F29: 34800 | G29: =VLOOKUP(B2,المقسطون!B26:N61,6,0) -> 1160 | H29: =IF(I29<>"","",IF(C29="","",IF(TODAY()>=h2g(D29),G29,""))) -> 1160 | I29: =IF(VLOOKUP($B$2,'المبالغ المتاخره'!$B$26:$AQ$61,ROW()-16,0)=0,"",VLOOKUP($B$2,'المبالغ المتاخره'!$B$26:$AQ$61,ROW()-16,0)) -> 
C30: 12 | D30: =IF(h2g(TEXT($C$7+((ROW()-19)*29.5),"B2yyyy/mm/")&TEXT($C$7,"B2dd"))>$H$14,"",IF(h2g(TEXT($C$7+((ROW()-19)*29.5),"B2yyyy/mm/")&TEXT($C$7,"B2dd"))>h2g($C$9),"",TEXT($C$7+((ROW()-19)*29.5),"B2yyyy/mm/")&TEXT($C$7,"B2dd"))) -> 1430/09/25 | E30: 2009/09/14 | F30: 33640 | G30: =VLOOKUP(B2,المقسطون!B26:N61,6,0) -> 1160 | H30: =IF(I30<>"","",IF(C30="","",IF(TODAY()>=h2g(D30),G30,""))) -> 1160 | I30: =IF(VLOOKUP($B$2,'المبالغ المتاخره'!$B$26:$AQ$61,ROW()-16,0)=0,"",VLOOKUP($B$2,'المبالغ المتاخره'!$B$26:$AQ$61,ROW()-16,0)) -> 
C31: 13 | D31: =IF(h2g(TEXT($C$7+((ROW()-19)*29.5),"B2yyyy/mm/")&TEXT($C$7,"B2dd"))>$H$14,"",IF(h2g(TEXT($C$7+((ROW()-19)*29.5),"B2yyyy/mm/")&TEXT($C$7,"B2dd"))>h2g($C$9),"",TEXT($C$7+((ROW()-19)*29.5),"B2yyyy/mm/")&TEXT($C$7,"B2dd"))) -> 1430/10/25 | E31: 2009/10/14 | F31: 32480 | G31: =VLOOKUP(B2,المقسطون!B26:N61,6,0) -> 1160 | H31: =IF(I31<>"","",IF(C31="","",IF(TODAY()>=h2g(D31),G31,""))) -> 1160 | I31: =IF(VLOOKUP($B$2,'المبالغ المتاخره'!$B$26:$AQ$61,ROW()-16,0)=0,"",VLOOKUP($B$2,'المبالغ المتاخره'!$B$26:$AQ$61,ROW()-16,0)) -> 
C32: 14 | D32: =IF(h2g(TEXT($C$7+((ROW()-19)*29.5),"B2yyyy/mm/")&TEXT($C$7,"B2dd"))>$H$14,"",IF(h2g(TEXT($C$7+((ROW()-19)*29.5),"B2yyyy/mm/")&TEXT($C$7,"B2dd"))>h2g($C$9),"",TEXT($C$7+((ROW()-19)*29.5),"B2yyyy/mm/")&TEXT($C$7,"B2dd"))) -> 1430/11/25 | E32: 2009/11/12 | F32: 31320 | G32: =VLOOKUP(B2,المقسطون!B26:N61,6,0) -> 1160 | H32: =IF(I32<>"","",IF(C32="","",IF(TODAY()>=h2g(D32),G32,""))) -> 1160 | I32: =IF(VLOOKUP($B$2,'المبالغ المتاخره'!$B$26:$AQ$61,ROW()-16,0)=0,"",VLOOKUP($B$2,'المبالغ المتاخره'!$B$26:$AQ$61,ROW()-16,0)) -> 
C33: 15 | D33: =IF(h2g(TEXT($C$7+((ROW()-19)*29.5),"B2yyyy/mm/")&TEXT($C$7,"B2dd"))>$H$14,"",IF(h2g(TEXT($C$7+((ROW()-19)*29.5),"B2yyyy/mm/")&TEXT($C$7,"B2dd"))>h2g($C$9),"",TEXT($C$7+((ROW()-19)*29.5),"B2yyyy/mm/")&TEXT($C$7,"B2dd"))) -> 1430/12/25 | E33: 2009/12/12 | F33: 30160 | G33: =VLOOKUP(B2,المقسطون!B26:N61,6,0) -> 1160 | H33: =IF(I33<>"","",IF(C33="","",IF(TODAY()>=h2g(D33),G33,""))) -> 1160 | I33: =IF(VLOOKUP($B$2,'المبالغ المتاخره'!$B$26:$AQ$61,ROW()-16,0)=0,"",VLOOKUP($B$2,'المبالغ المتاخره'!$B$26:$AQ$61,ROW()-16,0)) -> 
C34: 16 | D34: =IF(h2g(TEXT($C$7+((ROW()-19)*29.5),"B2yyyy/mm/")&TEXT($C$7,"B2dd"))>$H$14,"",IF(h2g(TEXT($C$7+((ROW()-19)*29.5),"B2yyyy/mm/")&TEXT($C$7,"B2dd"))>h2g($C$9),"",TEXT($C$7+((ROW()-19)*29.5),"B2yyyy/mm/")&TEXT($C$7,"B2dd"))) -> 1431/01/25 | E34: 2010/01/10 | F34: 29000 | G34: =VLOOKUP(B2,المقسطون!B26:N61,6,0) -> 1160 | H34: =IF(I34<>"","",IF(C34="","",IF(TODAY()>=h2g(D34),G34,""))) -> 1160 | I34: =IF(VLOOKUP($B$2,'المبالغ المتاخره'!$B$26:$AQ$61,ROW()-16,0)=0,"",VLOOKUP($B$2,'المبالغ المتاخره'!$B$26:$AQ$61,ROW()-16,0)) -> 
C35: 17 | D35: =IF(h2g(TEXT($C$7+((ROW()-19)*29.5),"B2yyyy/mm/")&TEXT($C$7,"B2dd"))>$H$14,"",IF(h2g(TEXT($C$7+((ROW()-19)*29.5),"B2yyyy/mm/")&TEXT($C$7,"B2dd"))>h2g($C$9),"",TEXT($C$7+((ROW()-19)*29.5),"B2yyyy/mm/")&TEXT($C$7,"B2dd"))) -> 1431/02/25 | E35: 2010/02/09 | F35: 27840 | G35: =VLOOKUP(B2,المقسطون!B26:N61,6,0) -> 1160 | H35: =IF(I35<>"","",IF(C35="","",IF(TODAY()>=h2g(D35),G35,""))) -> 1160 | I35: =IF(VLOOKUP($B$2,'المبالغ المتاخره'!$B$26:$AQ$61,ROW()-16,0)=0,"",VLOOKUP($B$2,'المبالغ المتاخره'!$B$26:$AQ$61,ROW()-16,0)) -> 
C36: 18 | D36: =IF(h2g(TEXT($C$7+((ROW()-19)*29.5),"B2yyyy/mm/")&TEXT($C$7,"B2dd"))>$H$14,"",IF(h2g(TEXT($C$7+((ROW()-19)*29.5),"B2yyyy/mm/")&TEXT($C$7,"B2dd"))>h2g($C$9),"",TEXT($C$7+((ROW()-19)*29.5),"B2yyyy/mm/")&TEXT($C$7,"B2dd"))) -> 1431/03/25 | E36: 2010/03/10 | F36: 26680 | G36: =VLOOKUP(B2,المقسطون!B26:N61,6,0) -> 1160 | H36: =IF(I36<>"","",IF(C36="","",IF(TODAY()>=h2g(D36),G36,""))) -> 1160 | I36: =IF(VLOOKUP($B$2,'المبالغ المتاخره'!$B$26:$AQ$61,ROW()-16,0)=0,"",VLOOKUP($B$2,'المبالغ المتاخره'!$B$26:$AQ$61,ROW()-16,0)) -> 
C37: 19 | D37: =IF(h2g(TEXT($C$7+((ROW()-19)*29.5),"B2yyyy/mm/")&TEXT($C$7,"B2dd"))>$H$14,"",IF(h2g(TEXT($C$7+((ROW()-19)*29.5),"B2yyyy/mm/")&TEXT($C$7,"B2dd"))>h2g($C$9),"",TEXT($C$7+((ROW()-19)*29.5),"B2yyyy/mm/")&TEXT($C$7,"B2dd"))) -> 1431/04/25 | E37: 2010/04/09 | F37: 25520 | G37: =VLOOKUP(B2,المقسطون!B26:N61,6,0) -> 1160 | H37: =IF(I37<>"","",IF(C37="","",IF(TODAY()>=h2g(D37),G37,""))) -> 1160 | I37: =IF(VLOOKUP($B$2,'المبالغ المتاخره'!$B$26:$AQ$61,ROW()-16,0)=0,"",VLOOKUP($B$2,'المبالغ المتاخره'!$B$26:$AQ$61,ROW()-16,0)) -> 
C38: 20 | D38: =IF(h2g(TEXT($C$7+((ROW()-19)*29.5),"B2yyyy/mm/")&TEXT($C$7,"B2dd"))>$H$14,"",IF(h2g(TEXT($C$7+((ROW()-19)*29.5),"B2yyyy/mm/")&TEXT($C$7,"B2dd"))>h2g($C$9),"",TEXT($C$7+((ROW()-19)*29.5),"B2yyyy/mm/")&TEXT($C$7,"B2dd"))) -> 1431/05/25 | E38: 2010/05/08 | F38: 24360 | G38: =VLOOKUP(B2,المقسطون!B26:N61,6,0) -> 1160 | H38: =IF(I38<>"","",IF(C38="","",IF(TODAY()>=h2g(D38),G38,""))) -> 1160 | I38: =IF(VLOOKUP($B$2,'المبالغ المتاخره'!$B$26:$AQ$61,ROW()-16,0)=0,"",VLOOKUP($B$2,'المبالغ المتاخره'!$B$26:$AQ$61,ROW()-16,0)) -> 
C39: 21 | D39: =IF(h2g(TEXT($C$7+((ROW()-19)*29.5),"B2yyyy/mm/")&TEXT($C$7,"B2dd"))>$H$14,"",IF(h2g(TEXT($C$7+((ROW()-19)*29.5),"B2yyyy/mm/")&TEXT($C$7,"B2dd"))>h2g($C$9),"",TEXT($C$7+((ROW()-19)*29.5),"B2yyyy/mm/")&TEXT($C$7,"B2dd"))) -> 1431/06/25 | E39: 2010/06/07 | F39: 23200 | G39: =VLOOKUP(B2,المقسطون!B26:N61,6,0) -> 1160 | H39: =IF(I39<>"","",IF(C39="","",IF(TODAY()>=h2g(D39),G39,""))) -> 1160 | I39: =IF(VLOOKUP($B$2,'المبالغ المتاخره'!$B$26:$AQ$61,ROW()-16,0)=0,"",VLOOKUP($B$2,'المبالغ المتاخره'!$B$26:$AQ$61,ROW()-16,0)) -> 
C40: 22 | D40: =IF(h2g(TEXT($C$7+((ROW()-19)*29.5),"B2yyyy/mm/")&TEXT($C$7,"B2dd"))>$H$14,"",IF(h2g(TEXT($C$7+((ROW()-19)*29.5),"B2yyyy/mm/")&TEXT($C$7,"B2dd"))>h2g($C$9),"",TEXT($C$7+((ROW()-19)*29.5),"B2yyyy/mm/")&TEXT($C$7,"B2dd"))) -> 1431/07/25 | E40: 2010/07/06 | F40: 22040 | G40: =VLOOKUP(B2,المقسطون!B26:N61,6,0) -> 1160 | H40: =IF(I40<>"","",IF(C40="","",IF(TODAY()>=h2g(D40),G40,""))) -> 1160 | I40: =IF(VLOOKUP($B$2,'المبالغ المتاخره'!$B$26:$AQ$61,ROW()-16,0)=0,"",VLOOKUP($B$2,'المبالغ المتاخره'!$B$26:$AQ$61,ROW()-16,0)) -> 
C41: 23 | D41: =IF(h2g(TEXT($C$7+((ROW()-19)*29.5),"B2yyyy/mm/")&TEXT($C$7,"B2dd"))>$H$14,"",IF(h2g(TEXT($C$7+((ROW()-19)*29.5),"B2yyyy/mm/")&TEXT($C$7,"B2dd"))>h2g($C$9),"",TEXT($C$7+((ROW()-19)*29.5),"B2yyyy/mm/")&TEXT($C$7,"B2dd"))) -> 1431/08/25 | E41: 2010/08/05 | F41: 20880 | G41: =VLOOKUP(B2,المقسطون!B26:N61,6,0) -> 1160 | H41: =IF(I41<>"","",IF(C41="","",IF(TODAY()>=h2g(D41),G41,""))) -> 1160 | I41: =IF(VLOOKUP($B$2,'المبالغ المتاخره'!$B$26:$AQ$61,ROW()-16,0)=0,"",VLOOKUP($B$2,'المبالغ المتاخره'!$B$26:$AQ$61,ROW()-16,0)) -> 
C42: 24 | D42: =IF(h2g(TEXT($C$7+((ROW()-19)*29.5),"B2yyyy/mm/")&TEXT($C$7,"B2dd"))>$H$14,"",IF(h2g(TEXT($C$7+((ROW()-19)*29.5),"B2yyyy/mm/")&TEXT($C$7,"B2dd"))>h2g($C$9),"",TEXT($C$7+((ROW()-19)*29.5),"B2yyyy/mm/")&TEXT($C$7,"B2dd"))) -> 1431/09/25 | E42: 2010/09/03 | F42: 19720 | G42: =VLOOKUP(B2,المقسطون!B26:N61,6,0) -> 1160 | H42: =IF(I42<>"","",IF(C42="","",IF(TODAY()>=h2g(D42),G42,""))) -> 1160 | I42: =IF(VLOOKUP($B$2,'المبالغ المتاخره'!$B$26:$AQ$61,ROW()-16,0)=0,"",VLOOKUP($B$2,'المبالغ المتاخره'!$B$26:$AQ$61,ROW()-16,0)) -> 
C43: 25 | D43: =IF(h2g(TEXT($C$7+((ROW()-19)*29.5),"B2yyyy/mm/")&TEXT($C$7,"B2dd"))>$H$14,"",IF(h2g(TEXT($C$7+((ROW()-19)*29.5),"B2yyyy/mm/")&TEXT($C$7,"B2dd"))>h2g($C$9),"",TEXT($C$7+((ROW()-19)*29.5),"B2yyyy/mm/")&TEXT($C$7,"B2dd"))) -> 1431/10/25 | E43: 2010/10/03 | F43: 18560 | G43: =VLOOKUP(B2,المقسطون!B26:N61,6,0) -> 1160 | H43: =IF(I43<>"","",IF(C43="","",IF(TODAY()>=h2g(D43),G43,""))) -> 1160 | I43: =IF(VLOOKUP($B$2,'المبالغ المتاخره'!$B$26:$AQ$61,ROW()-16,0)=0,"",VLOOKUP($B$2,'المبالغ المتاخره'!$B$26:$AQ$61,ROW()-16,0)) -> 
C44: 26 | D44: =IF(h2g(TEXT($C$7+((ROW()-19)*29.5),"B2yyyy/mm/")&TEXT($C$7,"B2dd"))>$H$14,"",IF(h2g(TEXT($C$7+((ROW()-19)*29.5),"B2yyyy/mm/")&TEXT($C$7,"B2dd"))>h2g($C$9),"",TEXT($C$7+((ROW()-19)*29.5),"B2yyyy/mm/")&TEXT($C$7,"B2dd"))) -> 1431/11/25 | E44: 2010/11/01 | F44: 17400 | G44: =VLOOKUP(B2,المقسطون!B26:N61,6,0) -> 1160 | H44: =IF(I44<>"","",IF(C44="","",IF(TODAY()>=h2g(D44),G44,""))) -> 1160 | I44: =IF(VLOOKUP($B$2,'المبالغ المتاخره'!$B$26:$AQ$61,ROW()-16,0)=0,"",VLOOKUP($B$2,'المبالغ المتاخره'!$B$26:$AQ$61,ROW()-16,0)) -> 
C45: 27 | D45: =IF(h2g(TEXT($C$7+((ROW()-19)*29.5),"B2yyyy/mm/")&TEXT($C$7,"B2dd"))>$H$14,"",IF(h2g(TEXT($C$7+((ROW()-19)*29.5),"B2yyyy/mm/")&TEXT($C$7,"B2dd"))>h2g($C$9),"",TEXT($C$7+((ROW()-19)*29.5),"B2yyyy/mm/")&TEXT($C$7,"B2dd"))) -> 1431/12/25 | E45: 2010/12/01 | F45: 16240 | G45: =VLOOKUP(B2,المقسطون!B26:N61,6,0) -> 1160 | H45: =IF(I45<>"","",IF(C45="","",IF(TODAY()>=h2g(D45),G45,""))) -> 1160 | I45: =IF(VLOOKUP($B$2,'المبالغ المتاخره'!$B$26:$AQ$61,ROW()-16,0)=0,"",VLOOKUP($B$2,'المبالغ المتاخره'!$B$26:$AQ$61,ROW()-16,0)) -> 
C46: 28 | D46: =IF(h2g(TEXT($C$7+((ROW()-19)*29.5),"B2yyyy/mm/")&TEXT($C$7,"B2dd"))>$H$14,"",IF(h2g(TEXT($C$7+((ROW()-19)*29.5),"B2yyyy/mm/")&TEXT($C$7,"B2dd"))>h2g($C$9),"",TEXT($C$7+((ROW()-19)*29.5),"B2yyyy/mm/")&TEXT($C$7,"B2dd"))) -> 1432/01/25 | E46: 2010/12/31 | F46: 15080 | G46: =VLOOKUP(B2,المقسطون!B26:N61,6,0) -> 1160 | H46: =IF(I46<>"","",IF(C46="","",IF(TODAY()>=h2g(D46),G46,""))) -> 1160 | I46: =IF(VLOOKUP($B$2,'المبالغ المتاخره'!$B$26:$AQ$61,ROW()-16,0)=0,"",VLOOKUP($B$2,'المبالغ المتاخره'!$B$26:$AQ$61,ROW()-16,0)) -> 
C47: 29 | D47: =IF(h2g(TEXT($C$7+((ROW()-19)*29.5),"B2yyyy/mm/")&TEXT($C$7,"B2dd"))>$H$14,"",IF(h2g(TEXT($C$7+((ROW()-19)*29.5),"B2yyyy/mm/")&TEXT($C$7,"B2dd"))>h2g($C$9),"",TEXT($C$7+((ROW()-19)*29.5),"B2yyyy/mm/")&TEXT($C$7,"B2dd"))) -> 1432/02/25 | E47: 2011/01/30 | F47: 13920 | G47: =VLOOKUP(B2,المقسطون!B26:N61,6,0) -> 1160 | H47: =IF(I47<>"","",IF(C47="","",IF(TODAY()>=h2g(D47),G47,""))) -> 1160 | I47: =IF(VLOOKUP($B$2,'المبالغ المتاخره'!$B$26:$AQ$61,ROW()-16,0)=0,"",VLOOKUP($B$2,'المبالغ المتاخره'!$B$26:$AQ$61,ROW()-16,0)) -> 
C48: 30 | D48: =IF(h2g(TEXT($C$7+((ROW()-19)*29.5),"B2yyyy/mm/")&TEXT($C$7,"B2dd"))>$H$14,"",IF(h2g(TEXT($C$7+((ROW()-19)*29.5),"B2yyyy/mm/")&TEXT($C$7,"B2dd"))>h2g($C$9),"",TEXT($C$7+((ROW()-19)*29.5),"B2yyyy/mm/")&TEXT($C$7,"B2dd"))) -> 1432/03/25 | E48: 2011/02/28 | F48: 12760 | G48: =VLOOKUP(B2,المقسطون!B26:N61,6,0) -> 1160 | H48: =IF(I48<>"","",IF(C48="","",IF(TODAY()>=h2g(D48),G48,""))) -> 1160 | I48: =IF(VLOOKUP($B$2,'المبالغ المتاخره'!$B$26:$AQ$61,ROW()-16,0)=0,"",VLOOKUP($B$2,'المبالغ المتاخره'!$B$26:$AQ$61,ROW()-16,0)) -> 
C49: 31 | D49: =IF(h2g(TEXT($C$7+((ROW()-19)*29.5),"B2yyyy/mm/")&TEXT($C$7,"B2dd"))>$H$14,"",IF(h2g(TEXT($C$7+((ROW()-19)*29.5),"B2yyyy/mm/")&TEXT($C$7,"B2dd"))>h2g($C$9),"",TEXT($C$7+((ROW()-19)*29.5),"B2yyyy/mm/")&TEXT($C$7,"B2dd"))) -> 1432/04/25 | E49: 2011/03/30 | F49: 11600 | G49: =VLOOKUP(B2,المقسطون!B26:N61,6,0) -> 1160 | H49: =IF(I49<>"","",IF(C49="","",IF(TODAY()>=h2g(D49),G49,""))) -> 1160 | I49: =IF(VLOOKUP($B$2,'المبالغ المتاخره'!$B$26:$AQ$61,ROW()-16,0)=0,"",VLOOKUP($B$2,'المبالغ المتاخره'!$B$26:$AQ$61,ROW()-16,0)) -> 
C50: 32 | D50: =IF(h2g(TEXT($C$7+((ROW()-19)*29.5),"B2yyyy/mm/")&TEXT($C$7,"B2dd"))>$H$14,"",IF(h2g(TEXT($C$7+((ROW()-19)*29.5),"B2yyyy/mm/")&TEXT($C$7,"B2dd"))>h2g($C$9),"",TEXT($C$7+((ROW()-19)*29.5),"B2yyyy/mm/")&TEXT($C$7,"B2dd"))) -> 1432/05/25 | E50: 2011/04/28 | F50: 10440 | G50: =VLOOKUP(B2,المقسطون!B26:N61,6,0) -> 1160 | H50: =IF(I50<>"","",IF(C50="","",IF(TODAY()>=h2g(D50),G50,""))) -> 1160 | I50: =IF(VLOOKUP($B$2,'المبالغ المتاخره'!$B$26:$AQ$61,ROW()-16,0)=0,"",VLOOKUP($B$2,'المبالغ المتاخره'!$B$26:$AQ$61,ROW()-16,0)) -> 
C51: 33 | D51: =IF(h2g(TEXT($C$7+((ROW()-19)*29.5),"B2yyyy/mm/")&TEXT($C$7,"B2dd"))>$H$14,"",IF(h2g(TEXT($C$7+((ROW()-19)*29.5),"B2yyyy/mm/")&TEXT($C$7,"B2dd"))>h2g($C$9),"",TEXT($C$7+((ROW()-19)*29.5),"B2yyyy/mm/")&TEXT($C$7,"B2dd"))) -> 1432/06/25 | E51: 2011/05/28 | F51: 9280 | G51: =VLOOKUP(B2,المقسطون!B26:N61,6,0) -> 1160 | H51: =IF(I51<>"","",IF(C51="","",IF(TODAY()>=h2g(D51),G51,""))) -> 1160 | I51: =IF(VLOOKUP($B$2,'المبالغ المتاخره'!$B$26:$AQ$61,ROW()-16,0)=0,"",VLOOKUP($B$2,'المبالغ المتاخره'!$B$26:$AQ$61,ROW()-16,0)) -> 
C52: 34 | D52: =IF(h2g(TEXT($C$7+((ROW()-19)*29.5),"B2yyyy/mm/")&TEXT($C$7,"B2dd"))>$H$14,"",IF(h2g(TEXT($C$7+((ROW()-19)*29.5),"B2yyyy/mm/")&TEXT($C$7,"B2dd"))>h2g($C$9),"",TEXT($C$7+((ROW()-19)*29.5),"B2yyyy/mm/")&TEXT($C$7,"B2dd"))) -> 1432/07/25 | E52: 2011/06/26 | F52: 8120 | G52: =VLOOKUP(B2,المقسطون!B26:N61,6,0) -> 1160 | H52: =IF(I52<>"","",IF(C52="","",IF(TODAY()>=h2g(D52),G52,""))) -> 1160 | I52: =IF(VLOOKUP($B$2,'المبالغ المتاخره'!$B$26:$AQ$61,ROW()-16,0)=0,"",VLOOKUP($B$2,'المبالغ المتاخره'!$B$26:$AQ$61,ROW()-16,0)) -> 
C53: 35 | D53: =IF(h2g(TEXT($C$7+((ROW()-19)*29.5),"B2yyyy/mm/")&TEXT($C$7,"B2dd"))>$H$14,"",IF(h2g(TEXT($C$7+((ROW()-19)*29.5),"B2yyyy/mm/")&TEXT($C$7,"B2dd"))>h2g($C$9),"",TEXT($C$7+((ROW()-19)*29.5),"B2yyyy/mm/")&TEXT($C$7,"B2dd"))) -> 1432/08/25 | E53: 2011/07/26 | F53: 6960 | G53: =VLOOKUP(B2,المقسطون!B26:N61,6,0) -> 1160 | H53: =IF(I53<>"","",IF(C53="","",IF(TODAY()>=h2g(D53),G53,""))) -> 1160 | I53: =IF(VLOOKUP($B$2,'المبالغ المتاخره'!$B$26:$AQ$61,ROW()-16,0)=0,"",VLOOKUP($B$2,'المبالغ المتاخره'!$B$26:$AQ$61,ROW()-16,0)) -> 
C54: 36 | D54: =IF(h2g(TEXT($C$7+((ROW()-19)*29.5),"B2yyyy/mm/")&TEXT($C$7,"B2dd"))>$H$14,"",IF(h2g(TEXT($C$7+((ROW()-19)*29.5),"B2yyyy/mm/")&TEXT($C$7,"B2dd"))>h2g($C$9),"",TEXT($C$7+((ROW()-19)*29.5),"B2yyyy/mm/")&TEXT($C$7,"B2dd"))) -> 1432/09/25 | E54: 2011/08/24 | F54: 5800 | G54: =IF(D54="","",IF($C$14="","",$C$14/$C$5)) -> 1160 | H54: =IF(I54<>"","",IF(C54="","",IF(TODAY()>=h2g(D54),G54,""))) -> 1160 | I54: =IF(VLOOKUP($B$2,'المبالغ المتاخره'!$B$26:$AQ$61,ROW()-16,0)=0,"",VLOOKUP($B$2,'المبالغ المتاخره'!$B$26:$AQ$61,ROW()-16,0)) -> 
C55: 37 | D55: =IF(h2g(TEXT($C$7+((ROW()-19)*29.5),"B2yyyy/mm/")&TEXT($C$7,"B2dd"))>$H$14,"",IF(h2g(TEXT($C$7+((ROW()-19)*29.5),"B2yyyy/mm/")&TEXT($C$7,"B2dd"))>h2g($C$9),"",TEXT($C$7+((ROW()-19)*29.5),"B2yyyy/mm/")&TEXT($C$7,"B2dd"))) -> 1432/10/25 | E55: 2011/09/23 | F55: 4640 | G55: 1160 | H55: =IF(I55<>"","",IF(C55="","",IF(TODAY()>=h2g(D55),G55,""))) -> 1160 | I55: =IF(VLOOKUP($B$2,'المبالغ المتاخره'!$B$26:$AQ$61,ROW()-16,0)=0,"",VLOOKUP($B$2,'المبالغ المتاخره'!$B$26:$AQ$61,ROW()-16,0)) -> 
C56: 38 | D56: =IF(h2g(TEXT($C$7+((ROW()-19)*29.5),"B2yyyy/mm/")&TEXT($C$7,"B2dd"))>$H$14,"",IF(h2g(TEXT($C$7+((ROW()-19)*29.5),"B2yyyy/mm/")&TEXT($C$7,"B2dd"))>h2g($C$9),"",TEXT($C$7+((ROW()-19)*29.5),"B2yyyy/mm/")&TEXT($C$7,"B2dd"))) -> 1432/11/25 | E56: 2011/10/22 | F56: 3480 | G56: 1160 | H56: =IF(I56<>"","",IF(C56="","",IF(TODAY()>=h2g(D56),G56,""))) -> 1160 | I56: =IF(VLOOKUP($B$2,'المبالغ المتاخره'!$B$26:$AQ$61,ROW()-16,0)=0,"",VLOOKUP($B$2,'المبالغ المتاخره'!$B$26:$AQ$61,ROW()-16,0)) -> 
C57: 39 | D57: =IF(h2g(TEXT($C$7+((ROW()-19)*29.5),"B2yyyy/mm/")&TEXT($C$7,"B2dd"))>$H$14,"",IF(h2g(TEXT($C$7+((ROW()-19)*29.5),"B2yyyy/mm/")&TEXT($C$7,"B2dd"))>h2g($C$9),"",TEXT($C$7+((ROW()-19)*29.5),"B2yyyy/mm/")&TEXT($C$7,"B2dd"))) -> 1432/12/25 | E57: 2011/11/21 | F57: 2320 | G57: 1160 | H57: =IF(I57<>"","",IF(C57="","",IF(TODAY()>=h2g(D57),G57,""))) -> 1160 | I57: =IF(VLOOKUP($B$2,'المبالغ المتاخره'!$B$26:$AQ$61,ROW()-16,0)=0,"",VLOOKUP($B$2,'المبالغ المتاخره'!$B$26:$AQ$61,ROW()-16,0)) -> 
C58: 40 | D58: =IF(h2g(TEXT($C$7+((ROW()-19)*29.5),"B2yyyy/mm/")&TEXT($C$7,"B2dd"))>$H$14,"",IF(h2g(TEXT($C$7+((ROW()-19)*29.5),"B2yyyy/mm/")&TEXT($C$7,"B2dd"))>h2g($C$9),"",TEXT($C$7+((ROW()-19)*29.5),"B2yyyy/mm/")&TEXT($C$7,"B2dd"))) -> 1433/01/25 | E58: 2011/12/20 | F58: 1160 | G58: 1160 | H58: =IF(I58<>"","",IF(C58="","",IF(TODAY()>=h2g(D58),G58,""))) -> 1160 | I58: =IF(VLOOKUP($B$2,'المبالغ المتاخره'!$B$26:$AQ$61,ROW()-16,0)=0,"",VLOOKUP($B$2,'المبالغ المتاخره'!$B$26:$AQ$61,ROW()-16,0)) -> 

Sheet المبالغ المتاخره
B21: ملف العميــل | C21: ='حركة تسديد عميل'!B2 -> 100 | D21: =VLOOKUP(C21,B25:AQ61,2,0) -> 1 | I21: هذه الخلية تعني الأشهر
B25: رقم الملف | C25: الاسم | D25: 1 | E25: 2 | F25: 3 | G25: 4 | H25: 5 | I25: 6 | J25: 7 | K25: 8 | L25: 9 | M25: 10 | N25: 11 | O25: 12 | P25: 13 | Q25: 14 | R25: 15 | S25: 16 | T25: 17 | U25: 18 | V25: 19 | W25: 20 | X25: 21 | Y25: 22 | Z25: 23 | AA25: 24 | AB25: 25 | AC25: 26 | AD25: 27 | AE25: 28 | AF25: 29 | AG25: 30 | AH25: 31 | AI25: 32 | AJ25: 33 | AK25: 34 | AL25: 35 | AM25: 36 | AN25: 37 | AO25: 38 | AP25: 39 | AQ25: 40
B26: 100 | C26: 1 | D26: 1160
B27: 200 | C27: 2 | D27: 2000
B28: 300 | C28: 3 | D28: 1160
B29: 400 | C29: 4 | D29: 1160
B30: 500 | C30: 5 | D30: 1160
D31: 1160
D32: 1160
D33: 1160
D34: 1160
D35: 1160
D36: 1160
